bitfinex/quotes_BTCUSD_20241111
["timestamp","ask_amount","ask_price","bid_price","bid_amount"]
[1731358506640,0.17450081,87095.0,87071.0,0.17265988]
[1731358506865,0.14294075,87089.0,87086.0,0.0017024]
[1731358507298,1.64294075,87089.0,87078.0,0.0017024]
[1731358507483,1.64294075,87089.0,87086.0,0.0017024]
[1731358507843,1.64294075,87089.0,87078.0,0.0017024]
[1731358508060,1.64294075,87089.0,87086.0,0.0017024]
[1731358508259,1.64294075,87089.0,87070.0,0.1]
[1731358508885,0.023,87088.0,87053.0,0.005]
[1731358509085,0.11994075,87084.0,87083.0,0.0017024]
[1731358509297,0.023,87083.0,87057.0,0.102]
[1731358509490,1.523,87081.0,87080.0,0.002555]
[1731358509757,1.64294075,87081.0,87080.0,0.002555]
[1731358509947,1.64294075,87081.0,87080.0,0.0008526]
[1731358510146,1.64294075,87081.0,87080.0,0.002555]
[1731358510392,1.64294075,87081.0,87080.0,0.0008526]
[1731358510918,1.64294075,87081.0,87067.0,0.1]
[1731358511131,0.11994075,87068.0,87035.0,0.045931]
[1731358511365,0.0802,87076.0,87051.0,0.17265988]
[1731358511366,0.023,87055.0,87051.0,0.17265988]
[1731358511572,0.023,87053.0,87045.0,0.0017024]
[1731358511775,0.023,87051.0,87045.0,0.0017024]
[1731358512429,1.65723483,87051.0,87045.0,0.0017024]
[1731358512650,1.68857363,87051.0,87045.0,0.0017024]
[1731358512794,1.68857363,87051.0,87025.0,0.0017024]
[1731358513009,2.44767363,87051.0,87026.0,0.0017024]
[1731358513208,2.44767363,87051.0,87021.0,0.17265988]
[1731358513209,2.44767363,87051.0,87033.0,0.0017024]
[1731358513651,2.44767363,87051.0,87021.0,0.14933828]
[1731358513865,0.11994075,87040.0,87021.0,0.14933828]
[1731358514158,0.11994075,87040.0,87022.0,0.00375394]
[1731358514159,0.03499408,87039.0,87022.0,0.00375394]
[1731358514360,0.03499408,87039.0,87016.0,0.000853]
[1731358514361,0.29260063,87028.0,87016.0,0.000853]
[1731358514587,0.30546635,87020.0,87016.0,0.000853]
[1731358514834,0.705,87027.0,87016.0,0.000853]
[1731358515070,0.17265988,87026.0,87016.0,0.000853]
[1731358515266,0.023,87025.0,87016.0,0.000853]
[1731358515400,0.023,87025.0,87016.0,0.002853]
[1731358515608,0.17265988,87017.0,87016.0,0.000853]
[1731358515818,0.14294075,87017.0,87016.0,0.000853]
[1731358516029,1.64294075,87017.0,87016.0,0.000853]
[1731358517401,0.682,87032.0,87016.0,0.000853]
[1731358517604,0.17265988,87022.0,87016.0,0.000853]
[1731358517810,0.682,87032.0,87016.0,0.000853]
[1731358518037,0.16603498,87032.0,87021.0,0.005]
[1731358518274,0.0488,87060.0,87036.0,0.002]
[1731358518402,0.17265988,87037.0,87029.0,0.002]
[1731358518816,0.21996001,87048.0,87029.0,0.002]
[1731358519020,0.17265988,87039.0,87029.0,0.002]
[1731358519278,0.17265988,87037.0,87031.0,0.002]
[1731358519484,0.11994075,87037.0,87031.0,0.002]
[1731358519824,0.21996001,87048.0,87031.0,0.002]
[1731358520030,0.17265988,87039.0,87035.0,0.002]
[1731358520160,0.11994075,87038.0,87032.0,0.00375844]
[1731358520542,0.11994075,87038.0,87028.0,0.005]
[1731358521156,0.023,87035.0,87022.0,0.0778]
[1731358521379,0.11994075,87034.0,87028.0,0.00374653]
[1731358521607,0.11994075,87034.0,87014.0,0.005853]
[1731358521608,0.30546635,87032.0,87014.0,0.002853]
[1731358521808,0.30546635,87019.0,87014.0,0.000853]
[1731358522024,0.14294075,87018.0,87014.0,0.000853]
[1731358522257,1.523,87017.0,87014.0,0.000853]
[1731358522458,2.32494075,87017.0,87014.0,0.000853]
[1731358522680,0.023,87016.0,87014.0,0.000853]
[1731358523125,0.11994075,87015.0,87014.0,0.000853]
[1731358523560,0.14794075,87015.0,87014.0,0.000853]
[1731358523774,0.32846635,87001.0,87000.0,0.000853]
[1731358523986,0.4484071,87001.0,87000.0,0.000853]
[1731358525153,0.023,87000.0,86991.0,0.0002]
[1731358525360,0.14294075,86992.0,86991.0,0.0002]
[1731358525775,0.18471728,86992.0,86991.0,0.0002]
[1731358525992,0.14294075,86992.0,86991.0,0.0002]
[1731358526429,1.64294075,86992.0,86991.0,0.0002]
[1731358526637,0.023,86991.0,86984.0,0.0016]
[1731358526840,0.005,86980.0,86950.0,0.004598]
[1731358527044,0.32846635,86951.0,86950.0,0.004598]
[1731358527277,0.023,86950.0,86941.0,0.002853]
[1731358527494,0.023,86948.0,86941.0,0.002853]
[1731358527701,1.5,86951.0,86946.0,0.005]
[1731358527907,1.5,86951.0,86949.0,0.007]
[1731358528119,0.17265988,86950.0,86949.0,0.005]
[1731358528360,1.5,86951.0,86950.0,0.007]
[1731358528603,0.04717269,86964.0,86948.0,0.005]
[1731358528604,0.17265988,86962.0,86951.0,0.005]
[1731358528953,0.17265988,86962.0,86954.0,0.005]
[1731358529255,0.023,86960.0,86948.0,0.002]
[1731358529470,0.18992587,86962.0,86941.0,0.000853]
[1731358529471,0.023,86958.0,86941.0,0.000853]
[1731358529651,0.023,86945.0,86941.0,0.000853]
[1731358529896,0.023,86943.0,86941.0,0.000853]
[1731358530100,0.023,86943.0,86930.0,0.002]
[1731358530101,0.023,86941.0,86930.0,0.002]
[1731358530297,0.023,86939.0,86926.0,0.0028293]
[1731358530520,0.11994075,86938.0,86934.0,0.002]
[1731358530918,0.11994075,86938.0,86926.0,0.0028293]
[1731358531506,0.11994075,86938.0,86925.0,0.1028293]
[1731358531707,0.17265988,86937.0,86927.0,0.00409004]
[1731358531911,0.11994075,86936.0,86926.0,0.00409348]
[1731358532264,0.11994075,86936.0,86925.0,0.0028293]
[1731358532506,0.11994075,86936.0,86927.0,0.00408317]
[1731358532741,0.11994075,86936.0,86925.0,0.1]
[1731358532742,0.11994075,86936.0,86930.0,0.002]
[1731358532925,0.11994075,86936.0,86862.0,0.05705972]
[1731358532926,0.30546635,86933.0,86920.0,0.002]
[1731358533068,0.11994075,86932.0,86924.0,0.005]
[1731358533276,0.04692723,86944.0,86929.0,0.002]
[1731358533277,0.21958711,86944.0,86929.0,0.002]
[1731358533479,0.17265988,86934.0,86922.0,0.002]
[1731358533679,0.02195871,86943.0,86920.0,0.002]
[1731358533680,0.0021707,86936.0,86920.0,0.002]
[1731358533944,0.023,86932.0,86920.0,0.002]
[1731358534130,0.023,86932.0,86911.0,0.0002]
[1731358534131,0.17265988,86922.0,86911.0,0.0002]
[1731358534340,0.30546635,86912.0,86911.0,0.0002]
[1731358534565,0.4484071,86912.0,86893.0,0.005]
[1731358534889,0.023,86911.0,86898.0,0.002]
[1731358535533,0.11994075,86910.0,86898.0,0.002]
[1731358536277,0.11994075,86910.0,86909.0,0.002]
[1731358536472,0.0021707,86922.0,86904.0,0.0028533]
[1731358536766,0.17265988,86913.0,86904.0,0.0028533]
[1731358536912,0.023,86924.0,86904.0,0.0028533]
[1731358536913,0.11994075,86912.0,86904.0,0.0028533]
[1731358537125,0.11994075,86912.0,86904.0,0.0008533]
[1731358537327,0.11994075,86912.0,86910.0,0.002]
[1731358537535,0.30546635,86923.0,86904.0,0.0008533]
[1731358537536,0.17265988,86911.0,86904.0,0.0058533]
[1731358537790,0.29260063,86922.0,86910.0,0.002]
[1731358537981,0.17265988,86912.0,86909.0,0.002]
[1731358538243,0.12211145,86921.0,86908.0,0.1]
[1731358538468,0.12211145,86921.0,86904.0,0.0008533]
[1731358538469,0.29260063,86911.0,86904.0,0.0008533]
[1731358538646,0.11994075,86911.0,86904.0,0.0008533]
[1731358538845,0.17265988,86910.0,86904.0,0.0008533]
[1731358539055,0.20513522,86909.0,86904.0,0.0008533]
[1731358539301,0.0251707,86905.0,86904.0,0.0008533]
[1731358539488,0.14511145,86905.0,86904.0,0.0008533]
[1731358539709,1.64511145,86905.0,86904.0,0.0008533]
[1731358540159,1.62211145,86905.0,86904.0,0.0008533]
[1731358540350,1.69865789,86905.0,86904.0,0.0008533]
[1731358540559,1.66724218,86905.0,86904.0,0.0008533]
[1731358540984,1.66941288,86905.0,86904.0,0.0008533]
[1731358545958,0.0021707,86896.0,86891.0,0.0002]
[1731358546167,0.11994075,86895.0,86893.0,0.17265988]
[1731358546300,0.11994075,86895.0,86891.0,0.0002]
[1731358546737,0.11994075,86895.0,86894.0,0.002]
[1731358546967,0.11994075,86895.0,86891.0,0.0002]
[1731358547283,0.04779794,86895.0,86891.0,0.0052]
[1731358547500,0.21765988,86926.0,86891.0,0.0052]
[1731358547501,0.17265988,86904.0,86892.0,0.005]
[1731358547721,0.17265988,86904.0,86891.0,0.0002]
[1731358547722,0.29260063,86904.0,86899.0,0.005]
[1731358548173,0.11994075,86904.0,86899.0,0.005]
[1731358548603,0.11994075,86904.0,86900.0,0.00375142]
[1731358548808,0.11994075,86904.0,86899.0,0.005]
[1731358549452,0.21892317,86917.0,86893.0,0.002]
[1731358549453,0.21892317,86917.0,86904.0,0.005]
[1731358549671,0.17265988,86908.0,86904.0,0.005]
[1731358549898,0.0021707,86913.0,86904.0,0.005]
[1731358550123,1.5,86915.0,86912.0,0.005]
[1731358550320,1.5,86915.0,86913.0,0.005]
[1731358550524,0.17265988,86926.0,86917.0,0.005]
[1731358550746,0.11994075,86925.0,86917.0,0.005]
[1731358550952,1.5,86924.0,86912.0,0.1]
[1731358551153,1.5,86924.0,86904.0,0.0008531]
[1731358551154,0.30546635,86914.0,86904.0,0.0058531]
[1731358551357,0.11994075,86913.0,86910.0,0.17265988]
[1731358551560,1.5,86924.0,86910.0,0.005]
[1731358551561,0.17483058,86923.0,86910.0,0.005]
[1731358551772,0.11994075,86922.0,86910.0,0.005]
[1731358552187,0.0486574,86926.0,86917.0,0.005]
[1731358552389,0.11994075,86921.0,86917.0,0.005]
[1731358552542,0.0464867,86926.0,86922.0,0.005]
[1731358552744,0.0464867,86926.0,86912.0,0.1]
[1731358552745,0.17265988,86923.0,86912.0,0.1]
[1731358552972,0.11994075,86922.0,86912.0,0.1]
[1731358553310,0.0021707,86917.0,86911.0,0.002]
[1731358553435,0.11994075,86916.0,86911.0,0.002]
[1731358553846,0.0021707,86915.0,86904.0,0.0008531]
[1731358554049,0.11994075,86914.0,86909.0,0.005]
[1731358554293,0.29260063,86913.0,86904.0,0.0008531]
[1731358554493,0.11994075,86913.0,86904.0,0.0008531]
[1731358556019,0.11994075,86913.0,86905.0,0.002]
[1731358556164,0.11994075,86913.0,86912.0,0.002]
[1731358556371,0.17483058,86926.0,86911.0,0.005]
[1731358556613,0.17265988,86917.0,86909.0,0.002]
[1731358556825,1.61994075,86916.0,86912.0,0.005]
[1731358557024,1.61994075,86916.0,86909.0,0.002]
[1731358557228,1.61994075,86916.0,86912.0,0.005]
[1731358557431,0.01,86913.0,86912.0,0.005]
[1731358558574,0.01,86913.0,86912.0,0.007]
[1731358558780,0.01,86913.0,86912.0,0.002]
[1731358559022,0.12994075,86913.0,86901.0,0.005]
[1731358559231,0.13779227,86912.0,86901.0,0.005]
[1731358559434,0.11994075,86912.0,86901.0,0.005]
[1731358559639,0.11994075,86912.0,86911.0,0.002]
[1731358560000,0.11994075,86912.0,86902.0,0.005]
[1731358560203,0.11994075,86912.0,86903.0,0.005]
[1731358560452,0.17265988,86911.0,86896.0,0.27265988]
[1731358560681,0.11994075,86912.0,86898.0,0.1]
[1731358560682,0.199773,86909.0,86898.0,0.1]
[1731358560886,0.11994075,86908.0,86898.0,0.1]
[1731358561091,0.11994075,86908.0,86892.0,0.005]
[1731358561554,0.11994075,86908.0,86896.0,0.005]
[1731358561929,0.11994075,86908.0,86902.0,0.005]
[1731358562339,0.11994075,86908.0,86901.0,0.005]
[1731358563127,0.199773,86905.0,86901.0,0.005]
[1731358563254,0.11994075,86905.0,86901.0,0.005]
[1731358563665,1.61994075,86905.0,86901.0,0.005]
[1731358564014,1.61994075,86905.0,86891.0,0.17285988]
[1731358564015,1.61994075,86905.0,86899.0,0.005]
[1731358564297,1.61994075,86905.0,86891.0,0.0002]
[1731358564298,1.62211145,86905.0,86894.0,0.1]
[1731358564713,1.62211145,86905.0,86895.0,0.17265988]
[1731358565100,1.62211145,86905.0,86894.0,0.1]
[1731358565932,1.62211145,86905.0,86891.0,0.0002]
[1731358566991,1.62211145,86905.0,86874.0,0.17288649]
[1731358566992,0.023,86887.0,86874.0,0.17288649]
[1731358567183,0.0021707,86888.0,86865.0,0.17265988]
[1731358567184,0.023,86874.0,86865.0,0.17265988]
[1731358567413,0.199773,86866.0,86865.0,0.17265988]
[1731358567642,0.31971375,86866.0,86856.0,0.17265988]
[1731358567846,0.11994075,86865.0,86853.0,0.005]
[1731358568474,0.11994075,86865.0,86852.0,0.005]
[1731358568677,0.11994075,86865.0,86851.0,0.0002]
[1731358568678,0.11994075,86865.0,86857.0,0.005]
[1731358568884,0.11994075,86865.0,86851.0,0.0002]
[1731358569512,0.17265988,86864.0,86851.0,0.0002]
[1731358569642,0.29260063,86864.0,86851.0,0.0002]
[1731358569843,0.11994075,86863.0,86851.0,0.0002]
[1731358570317,0.17265988,86855.0,86851.0,0.0002]
[1731358570524,0.11994075,86854.0,86851.0,0.0002]
[1731358572174,0.11994075,86854.0,86843.0,0.0007533]
[1731358573120,0.17265988,86851.0,86843.0,0.0007533]
[1731358573498,0.11994075,86851.0,86843.0,0.0007533]
[1731358575003,0.0526,86891.0,86857.0,0.005]
[1731358575234,0.17265988,86859.0,86857.0,0.005]
[1731358575488,0.005,86897.0,86865.0,0.0773]
[1731358575719,0.005,86898.0,86866.0,0.005]
[1731358575937,0.005,86894.0,86866.0,0.005]
[1731358576139,0.005,86898.0,86866.0,0.005]
[1731358576310,0.17265988,86876.0,86866.0,0.005]
[1731358576554,0.17265988,86874.0,86854.0,0.0772]
[1731358576771,0.11994075,86873.0,86854.0,0.0772]
[1731358577420,0.17265988,86880.0,86859.0,0.17265988]
[1731358577639,0.17265988,86868.0,86854.0,0.0772]
[1731358577851,0.11994075,86873.0,86854.0,0.0772]
[1731358578028,0.17265988,86871.0,86854.0,0.0772]
[1731358578287,0.11994075,86870.0,86854.0,0.0772]
[1731358579858,0.17265988,86869.0,86854.0,0.0772]
[1731358580510,1.67265988,86869.0,86854.0,0.0772]
[1731358581392,0.17265988,86855.0,86843.0,0.0007533]
[1731358581660,0.11994075,86867.0,86843.0,0.0007533]
[1731358581661,0.11994075,86854.0,86843.0,0.0007533]
[1731358581879,0.11994075,86854.0,86846.0,0.1]
[1731358582524,1.5,86847.0,86846.0,0.1]
[1731358582997,1.5,86847.0,86843.0,0.0007533]
[1731358583252,0.11994075,86845.0,86843.0,0.0007533]
[1731358583933,1.5,86847.0,86844.0,0.17265988]
[1731358584155,0.17265988,86862.0,86843.0,0.0007533]
[1731358584369,0.17265988,86850.0,86843.0,0.0007533]
[1731358584581,1.61994075,86861.0,86843.0,0.0007533]
[1731358584848,0.17265988,86851.0,86843.0,0.0007533]
[1731358585065,1.61994075,86861.0,86843.0,0.0007533]
[1731358585280,0.11994075,86861.0,86843.0,0.0007533]
[1731358585752,0.21838926,86862.0,86843.0,0.0007533]
[1731358585753,1.5,86850.0,86843.0,0.0007533]
[1731358586188,0.11994075,86853.0,86843.0,0.0007533]
[1731358587483,0.29260063,86851.0,86843.0,0.0007533]
[1731358587677,0.11994075,86851.0,86843.0,0.0007533]
[1731358588312,0.11991855,86851.0,86843.0,0.0007533]
[1731358588962,0.17265988,86848.0,86843.0,0.0007533]
[1731358589169,0.11994075,86847.0,86843.0,0.0007533]
[1731358590809,0.16773622,86847.0,86843.0,0.0007533]
[1731358592520,0.17265988,86862.0,86843.0,0.0007533]
[1731358592744,0.17265988,86852.0,86843.0,0.0007533]
[1731358592961,0.11994075,86852.0,86843.0,0.0007533]
[1731358593889,1.79260063,86851.0,86843.0,0.0007533]
[1731358594302,1.61994075,86851.0,86843.0,0.0007533]
[1731358596517,0.04576473,86852.0,86843.0,0.0007533]
[1731358596728,0.17265988,86851.0,86843.0,0.0007533]
[1731358597601,0.11994075,86850.0,86843.0,0.0007533]
[1731358598040,1.5,86849.0,86843.0,0.0007533]
[1731358598263,0.11994075,86848.0,86843.0,0.0007533]
[1731358598949,0.29260063,86848.0,86843.0,0.0007533]
[1731358599165,0.11994075,86848.0,86843.0,0.0007533]
[1731358600506,1.5,86849.0,86843.0,0.0007533]
[1731358600708,1.5,86849.0,86844.0,0.03488907]
[1731358600931,1.5,86849.0,86843.0,0.0007533]
[1731358601082,0.04822383,86851.0,86844.0,0.03489028]
[1731358601288,0.04822383,86851.0,86843.0,0.0003533]
[1731358601289,0.0017074,86851.0,86848.0,0.005]
[1731358601449,0.0017074,86851.0,86849.0,0.03488696]
[1731358601672,0.17265988,86850.0,86849.0,0.03488696]
[1731358601879,0.0017074,86851.0,86849.0,0.03488696]
[1731358604188,0.0015584,86851.0,86850.0,0.24794075]
[1731358604537,0.0015584,86851.0,86850.0,0.28282771]
[1731358604979,0.0015584,86851.0,86850.0,0.28482771]
[1731358605190,0.0015584,86851.0,86850.0,0.28282771]
[1731358605392,0.0015584,86851.0,86850.0,0.32889427]
[1731358605613,0.0015584,86851.0,86850.0,0.39743887]
[1731358606031,0.0015584,86851.0,86850.0,0.41444796]
[1731358606314,0.0015584,86851.0,86850.0,0.32889427]
[1731358607143,0.0015584,86851.0,86850.0,0.33089427]
[1731358608283,0.0015584,86851.0,86850.0,0.32889427]
[1731358608752,0.0015584,86851.0,86850.0,0.41459124]
[1731358609036,0.0015584,86851.0,86850.0,0.32889427]
[1731358609190,0.0015584,86851.0,86850.0,0.33089427]
[1731358610233,0.0015584,86851.0,86850.0,0.32889427]
[1731358610442,0.17265988,86862.0,86861.0,0.005]
[1731358610443,0.16802328,86862.0,86861.0,0.005]
[1731358610651,0.16802328,86862.0,86861.0,0.028]
[1731358610872,0.16802328,86862.0,86857.0,0.03428768]
[1731358611110,1.5,86870.0,86858.0,0.03486049]
[1731358611298,1.5,86870.0,86856.0,0.1]
[1731358611517,1.5,86870.0,86857.0,0.03486541]
[1731358612129,1.5,86870.0,86855.0,0.023]
[1731358612341,1.5,86870.0,86857.0,0.023]
[1731358612548,0.17265988,86861.0,86857.0,0.023]
[1731358612802,1.5,86870.0,86850.0,0.03428768]
[1731358613047,1.5,86870.0,86851.0,0.03486705]
[1731358613048,0.11994075,86869.0,86851.0,0.03486705]
[1731358613429,0.11994075,86869.0,86851.0,0.06915473]
[1731358613640,0.11994075,86869.0,86852.0,0.03486705]
[1731358614067,0.11994075,86869.0,86853.0,0.023]
[1731358614269,0.11994075,86869.0,86852.0,0.023]
[1731358614704,0.11994075,86869.0,86854.0,0.023]
[1731358614906,0.0456,86858.0,86851.0,0.03428768]
[1731358615041,0.0456,86858.0,86847.0,0.1]
[1731358615042,0.0456,86858.0,86847.0,0.27265988]
[1731358615256,0.19996262,86865.0,86848.0,0.023]
[1731358615490,0.17265988,86862.0,86848.0,0.023]
[1731358615716,0.29260063,86862.0,86847.0,0.1]
[1731358616595,0.29260063,86862.0,86843.0,0.03464098]
[1731358616787,0.29260063,86862.0,86843.0,0.0003533]
[1731358617293,0.17265988,86862.0,86843.0,0.03464098]
[1731358617530,0.682,86889.0,86843.0,0.03464098]
[1731358617531,0.17265988,86861.0,86849.0,0.13928768]
[1731358617768,0.19996262,86852.0,86851.0,0.03428768]
[1731358617975,0.0456,86854.0,86849.0,0.1]
[1731358618403,0.11994075,86861.0,86849.0,0.1]
[1731358618404,0.16766627,86861.0,86849.0,0.1]
[1731358618624,0.04772552,86861.0,86843.0,0.03464098]
[1731358618850,0.17265988,86860.0,86848.0,0.03428768]
[1731358619085,0.17265988,86860.0,86852.0,0.03428768]
[1731358619502,0.17265988,86858.0,86852.0,0.03428768]
[1731358619723,0.0455,86869.0,86852.0,0.03428768]
[1731358619948,0.11994075,86868.0,86853.0,0.06915867]
[1731358620164,0.0455,86869.0,86854.0,0.03428768]
[1731358620398,0.005,86875.0,86858.0,0.005]
[1731358620618,0.04758087,86874.0,86859.0,0.03487105]
[1731358620831,0.04758087,86874.0,86859.0,0.06915873]
[1731358620832,0.17265988,86871.0,86859.0,0.06915873]
[1731358621038,0.17265988,86871.0,86861.0,0.03428768]
[1731358621534,0.04758087,86874.0,86865.0,0.005]
[1731358621733,0.17265988,86879.0,86872.0,0.005]
[1731358621945,0.17265988,86879.0,86872.0,0.0741749]
[1731358622168,0.17265988,86879.0,86872.0,0.03986938]
[1731358622594,0.17265988,86879.0,86872.0,0.20844474]
[1731358623030,0.17265988,86879.0,86872.0,0.19132392]
[1731358623244,0.1285074,86873.0,86872.0,0.1]
[1731358623465,0.005,86871.0,86854.0,0.17265988]
[1731358623661,0.29260063,86870.0,86848.0,0.03660235]
[1731358623872,0.29260063,86870.0,86845.0,0.05145454]
[1731358623873,0.31990337,86870.0,86851.0,0.0348712]
[1731358624112,0.31990337,86870.0,86853.0,0.03429955]
[1731358624113,0.11994075,86870.0,86853.0,0.03429955]
[1731358624319,0.11994075,86870.0,86856.0,0.03429955]
[1731358624320,0.17265988,86869.0,86856.0,0.03429955]
[1731358624524,0.17265988,86869.0,86857.0,0.0348712]
[1731358624735,0.11994075,86870.0,86857.0,0.06917075]
[1731358624940,0.11994075,86870.0,86855.0,0.15145454]
[1731358624941,0.11994075,86870.0,86858.0,0.06917075]
[1731358625145,0.17265988,86869.0,86859.0,0.0348712]
[1731358625376,0.0485095,86873.0,86861.0,0.17265988]
[1731358625583,0.17265988,86869.0,86862.0,0.06917075]
[1731358625790,0.0485095,86873.0,86863.0,0.0348712]
[1731358625995,0.0485095,86873.0,86860.0,0.13429955]
[1731358626196,0.0485095,86873.0,86861.0,0.06916703]
[1731358626492,0.0485095,86873.0,86862.0,0.03315599]
[1731358626697,0.0485095,86873.0,86861.0,0.03315599]
[1731358626913,0.17265988,86869.0,86860.0,0.0348722]
[1731358627106,0.0485095,86873.0,86857.0,0.1]
[1731358627107,0.11994075,86868.0,86857.0,0.1]
[1731358627783,0.0485095,86873.0,86858.0,0.03486262]
[1731358627998,0.0485095,86873.0,86859.0,0.005]
[1731358627999,0.17265988,86872.0,86859.0,0.005]
[1731358628224,0.17265988,86872.0,86860.0,0.03486262]
[1731358628427,0.17076467,86872.0,86860.0,0.03486262]
[1731358629263,0.0485095,86873.0,86860.0,0.16916587]
[1731358629463,0.0485095,86873.0,86861.0,0.03486262]
[1731358629661,0.0485095,86873.0,86861.0,0.13486262]
[1731358629869,0.0485095,86873.0,86862.0,0.13486262]
[1731358630077,0.0017074,86873.0,86872.0,0.005]
[1731358630277,0.0017074,86873.0,86872.0,0.03986262]
[1731358630486,0.0017074,86873.0,86872.0,0.0913175]
[1731358630997,0.0017074,86873.0,86872.0,0.04186262]
[1731358631967,0.0017074,86873.0,86872.0,0.03986262]
[1731358632551,0.0017074,86873.0,86872.0,0.13486262]
[1731358632752,0.0017074,86873.0,86872.0,0.1]
[1731358632967,0.0016394,86873.0,86872.0,0.1]
[1731358633614,0.0016394,86873.0,86863.0,0.005]
[1731358633822,0.0016394,86873.0,86864.0,0.03487416]
[1731358634249,0.0016394,86873.0,86857.0,0.1]
[1731358634250,0.0016394,86873.0,86858.0,0.03428594]
[1731358634473,0.0016394,86873.0,86859.0,0.07416278]
[1731358634678,0.0016394,86873.0,86870.0,0.0008535]
[1731358634880,0.25395988,86871.0,86870.0,0.0008535]
[1731358635082,0.20624075,86871.0,86870.0,0.0008535]
[1731358635285,1.70624075,86871.0,86870.0,0.0008535]
[1731358636267,1.71124075,86871.0,86870.0,0.0008535]
[1731358636471,1.75748506,86871.0,86870.0,0.0008535]
[1731358638444,0.19996262,86851.0,86850.0,0.0008537]
[1731358638659,0.31990337,86851.0,86850.0,0.0008537]
[1731358639081,0.31990337,86851.0,86833.0,0.0008552]
[1731358639082,0.005,86847.0,86833.0,0.0008552]
[1731358639298,0.005,86839.0,86833.0,0.0008552]
[1731358639502,0.19996262,86843.0,86833.0,0.0008552]
[1731358639503,0.11994075,86838.0,86833.0,0.0008552]
[1731358639935,0.12494075,86838.0,86833.0,0.0008552]
[1731358640401,0.005,86834.0,86833.0,0.0008552]
[1731358640602,0.40680337,86834.0,86833.0,0.0008552]
[1731358641750,0.50163203,86834.0,86833.0,0.0008552]
[1731358642190,0.30166941,86834.0,86833.0,0.0008552]
[1731358642416,0.21976941,86834.0,86833.0,0.0008552]
[1731358642857,0.21435141,86834.0,86833.0,0.0008552]
[1731358643292,1.71435141,86834.0,86833.0,0.0008552]
[1731358645274,0.21435141,86834.0,86833.0,0.0008552]
[1731358646879,0.3465465,86834.0,86833.0,0.0008552]
[1731358647726,0.21435141,86834.0,86833.0,0.0008552]
[1731358649731,0.21435141,86834.0,86817.0,0.0008552]
[1731358649732,0.26439018,86825.0,86817.0,0.0008552]
[1731358649968,0.13219509,86812.0,86803.0,0.00022674]
[1731358650196,0.13219509,86805.0,86803.0,0.00022674]
[1731358650430,0.11994075,86804.0,86803.0,0.00022674]
[1731358651080,0.11994075,86804.0,86783.0,0.0008518]
[1731358651494,0.17265988,86801.0,86783.0,0.0008518]
[1731358651722,0.13219509,86792.0,86783.0,0.0008518]
[1731358651927,0.25213584,86792.0,86783.0,0.0008518]
[1731358652206,0.13719509,86807.0,86783.0,0.0008518]
[1731358652427,0.17265988,86800.0,86783.0,0.0008518]
[1731358652645,0.04577546,86807.0,86788.0,0.005]
[1731358652846,0.11994075,86806.0,86788.0,0.005]
[1731358653011,0.11994075,86806.0,86783.0,0.0238518]
[1731358653215,0.11994075,86806.0,86783.0,0.0003518]
[1731358653904,0.17265988,86800.0,86783.0,0.0003518]
[1731358654261,0.17265988,86805.0,86786.0,0.005]
[1731358654459,0.11994075,86804.0,86800.0,0.1]
[1731358656264,0.0489,86819.0,86800.0,0.1]
[1731358656265,0.023,86839.0,86831.0,0.21898054]
[1731358656470,0.15519509,86832.0,86831.0,0.21898054]
[1731358656695,0.13219509,86807.0,86803.0,0.005]
[1731358657146,0.13219509,86807.0,86804.0,0.002]
[1731358657367,0.13219509,86807.0,86803.0,0.005]
[1731358657569,0.0017084,86804.0,86803.0,0.005]
[1731358658223,0.0017084,86804.0,86803.0,0.007]
[1731358659074,0.0017084,86804.0,86803.0,0.13694075]
[1731358659284,0.13219509,86866.0,86822.0,0.007]
[1731358659285,0.17265988,86823.0,86822.0,0.007]
[1731358659536,0.17265988,86823.0,86822.0,0.0915]
[1731358660013,0.17265988,86832.0,86831.0,0.001]
[1731358660885,1.70021912,86835.0,86834.0,0.001]
[1731358661094,1.70021912,86835.0,86834.0,0.003]
[1731358661522,1.70021912,86835.0,86799.0,0.002]
[1731358661523,1.82015987,86835.0,86831.0,0.1]
[1731358661744,0.11994075,86834.0,86826.0,0.001]
[1731358662423,0.17265988,86833.0,86819.0,0.1]
[1731358662620,0.17265988,86833.0,86812.0,0.001]
[1731358662621,0.20021912,86820.0,86812.0,0.001]
[1731358662848,0.11994075,86819.0,86812.0,0.001]
[1731358663492,0.11994075,86819.0,86814.0,0.002]
[1731358664602,0.11994075,86819.0,86812.0,0.002]
[1731358665277,0.11994075,86819.0,86809.0,0.002]
[1731358665738,0.20021912,86811.0,86809.0,0.002]
[1731358665932,0.15722865,86810.0,86798.0,0.00013008]
[1731358666172,0.20021912,86801.0,86794.0,0.00013008]
[1731358666374,0.11994075,86800.0,86794.0,0.00013008]
[1731358666831,0.11994075,86800.0,86791.0,0.0008542]
[1731358666832,0.20021912,86799.0,86791.0,0.0008542]
[1731358667008,0.11994075,86798.0,86791.0,0.0008542]
[1731358667215,0.20021912,86799.0,86798.0,0.00013008]
[1731358667416,0.20021912,86807.0,86795.0,0.00013008]
[1731358667663,0.11994075,86806.0,86795.0,0.00013008]
[1731358667879,1.5,86797.0,86795.0,0.00013008]
[1731358668755,1.5,86797.0,86796.0,0.00013008]
[1731358669165,1.5,86797.0,86792.0,0.00013008]
[1731358669166,1.61994075,86797.0,86792.0,0.00013008]
[1731358670323,0.11994075,86796.0,86791.0,0.00098428]
[1731358670923,0.29260063,86796.0,86791.0,0.10098428]
[1731358671155,0.11994075,86796.0,86791.0,0.00098428]
[1731358672259,0.11994075,86796.0,86787.0,0.1]
[1731358672486,0.11994075,86796.0,86774.0,0.09720692]
[1731358672900,0.29260063,86796.0,86774.0,0.09720692]
[1731358673346,0.29260063,86796.0,86760.0,0.00022674]
[1731358673683,0.29260063,86796.0,86769.0,0.17265988]
[1731358673892,0.29260063,86796.0,86723.0,0.05118273]
[1731358673893,0.005,86784.0,86766.0,0.023]
[1731358674103,0.005,86784.0,86767.0,0.11994075]
[1731358674305,0.002,86788.0,86767.0,0.11994075]
[1731358674306,0.005,86782.0,86768.0,0.123]
[1731358674518,0.005,86781.0,86768.0,0.1]